[Event "*** Titled Tuesday Blitz"]
[Site "Chess.com"]
[Date "2019.06.04"]
[Round "4"]
[White "kasparicy"]
[Black "ENEASZ"]
[Result "1/2-1/2"]
[WhiteElo "2350"]
[BlackElo "2506"]
[TimeControl "180+2"]
[EndTime "13:52:21 PDT"]
[Termination "Game drawn - insufficient material"]

1. e4 {[%clk 0:02:48.8]} 1... d6 {[%clk 0:02:39.5]} 2. d4 {[%clk 0:02:41.8]}
2... Nf6 {[%clk 0:02:40.3]} 3. Nc3 {[%clk 0:02:41.8]} 3... e5 {[%clk 0:02:41.5]}
4. f4 {[%clk 0:02:41.5]} 4... exd4 {[%clk 0:02:37.1]} 5. Qxd4 {[%clk 0:02:41.5]}
5... c6 {[%clk 0:02:38.4]} 6. Nf3 {[%clk 0:02:40]} 6... Bg4 {[%clk 0:02:34.8]}
7. Be3 {[%clk 0:02:38.8]} 7... Nbd7 {[%clk 0:02:35.5]} 8. O-O-O {[%clk
0:02:38.9]} 8... Be7 {[%clk 0:02:30.5]} 9. e5 {[%clk 0:02:37.2]} 9... Bxf3
{[%clk 0:02:03.3]} 10. gxf3 {[%clk 0:02:30.1]} 10... Nh5 {[%clk 0:01:25.7]} 11.
exd6 {[%clk 0:02:26.6]} 11... Bf6 {[%clk 0:01:26.9]} 12. Qe4+ {[%clk 0:02:25.8]}
12... Kf8 {[%clk 0:01:28.3]} 13. Bd4 {[%clk 0:02:22.3]} 13... g6 {[%clk
0:01:29.4]} 14. f5 {[%clk 0:02:19.8]} 14... Kg7 {[%clk 0:01:29.5]} 15. fxg6
{[%clk 0:02:19.7]} 15... hxg6 {[%clk 0:01:31.4]} 16. Bc4 {[%clk 0:02:18.7]}
16... Re8 {[%clk 0:01:30.8]} 17. Qg4 {[%clk 0:02:16.2]} 17... b5 {[%clk
0:01:21.2]} 18. Bb3 {[%clk 0:02:15.8]} 18... a5 {[%clk 0:01:21.5]} 19. a4 {[%clk
0:02:13.4]} 19... bxa4 {[%clk 0:01:19.9]} 20. Nxa4 {[%clk 0:02:15.3]} 20... Ne5
{[%clk 0:01:13.3]} 21. Qe4 {[%clk 0:01:32.4]} 21... Qxd6 {[%clk 0:01:03.2]} 22.
Bc5 {[%clk 0:01:32.6]} 22... Qc7 {[%clk 0:00:57.2]} 23. Bd6 {[%clk 0:01:29.6]}
23... Qa7 {[%clk 0:00:52.1]} 24. f4 {[%clk 0:01:29.8]} 24... Ng4 {[%clk
0:00:48.5]} 25. Qc4 {[%clk 0:01:30.3]} 25... Ne3 {[%clk 0:00:42.4]} 26. Bc5
{[%clk 0:01:16.2]} 26... Nxc4 {[%clk 0:00:26.5]} 27. Bxa7 {[%clk 0:01:16.7]}
27... Nxb2 {[%clk 0:00:28.1]} 28. Rd7 {[%clk 0:01:16.9]} 28... Nxa4 {[%clk
0:00:25.7]} 29. Rxf7+ {[%clk 0:01:16.7]} 29... Kh6 {[%clk 0:00:22.7]} 30. Bxa4
{[%clk 0:01:17.5]} 30... Re7 {[%clk 0:00:18.3]} 31. Rxe7 {[%clk 0:01:17.4]}
31... Bxe7 {[%clk 0:00:20.2]} 32. Be3 {[%clk 0:01:18.7]} 32... Ba3+ {[%clk
0:00:19.7]} 33. Kb1 {[%clk 0:01:17.1]} 33... Rb8+ {[%clk 0:00:20.5]} 34. Ka2
{[%clk 0:01:18.4]} 34... Bd6 {[%clk 0:00:19.3]} 35. f5+ {[%clk 0:01:18.5]} 35...
Kg7 {[%clk 0:00:12.3]} 36. fxg6 {[%clk 0:01:18.5]} 36... Rb4 {[%clk 0:00:13.1]}
37. Bxc6 {[%clk 0:01:16.8]} 37... Rc4 {[%clk 0:00:13.7]} 38. Be8 {[%clk
0:01:14.7]} 38... Rxc2+ {[%clk 0:00:14.8]} 39. Kb3 {[%clk 0:01:15.9]} 39... Re2
{[%clk 0:00:14.6]} 40. Bd4+ {[%clk 0:01:16.9]} 40... Kh6 {[%clk 0:00:09.1]} 41.
Bf7 {[%clk 0:01:07.9]} 41... Rxh2 {[%clk 0:00:09.9]} 42. Rg1 {[%clk 0:01:04.8]}
42... Bf8 {[%clk 0:00:04.7]} 43. Be3+ {[%clk 0:01:01.1]} 43... Kg7 {[%clk
0:00:04.9]} 44. Bd4+ {[%clk 0:01:03]} 44... Kh6 {[%clk 0:00:06.1]} 45. Ka4
{[%clk 0:01:01]} 45... Rh4 {[%clk 0:00:06.6]} 46. Rd1 {[%clk 0:01:01.2]} 46...
Bg7 {[%clk 0:00:07.5]} 47. Kxa5 {[%clk 0:01:02.2]} 47... Bxd4 {[%clk 0:00:08.3]}
48. Kb5 {[%clk 0:01:03.6]} 48... Bg7 {[%clk 0:00:09.4]} 49. Rd8 {[%clk
0:01:03.2]} 49... Kg5 {[%clk 0:00:09.4]} 50. Rd5+ {[%clk 0:01:01.2]} 50... Kh6
{[%clk 0:00:09.9]} 51. Rd8 {[%clk 0:01:01.9]} 51... Nf4 {[%clk 0:00:11.1]} 52.
Kc6 {[%clk 0:00:59.2]} 52... Nxg6 {[%clk 0:00:10.1]} 53. Rd6 {[%clk 0:00:57.9]}
53... Rg4 {[%clk 0:00:06.8]} 54. Rxg6+ {[%clk 0:00:58.6]} 54... Rxg6+ {[%clk
0:00:08.7]} 55. Bxg6 {[%clk 0:01:00.4]} 1/2-1/2

[Event "*** Titled Tuesday Blitz"]
[Site "Chess.com"]
[Date "2019.06.04"]
[Round "4"]
[White "csati17"]
[Black "LonesomeGeorge1"]
[Result "1/2-1/2"]
[WhiteElo "2505"]
[BlackElo "2369"]
[TimeControl "180+2"]
[EndTime "13:52:24 PDT"]
[Termination "Game drawn - insufficient material"]

1. c4 {[%clk 0:03:01.9]} 1... e6 {[%clk 0:02:59.6]} 2. g3 {[%clk 0:03:02.5]}
2... d5 {[%clk 0:03:00.2]} 3. Bg2 {[%clk 0:03:04.4]} 3... Nf6 {[%clk 0:03:01.5]}
4. Nf3 {[%clk 0:03:06.3]} 4... Be7 {[%clk 0:03:02.6]} 5. O-O {[%clk 0:03:08.2]}
5... O-O {[%clk 0:03:03.8]} 6. b3 {[%clk 0:03:10]} 6... a5 {[%clk 0:03:03.5]} 7.
Nc3 {[%clk 0:03:02.1]} 7... d4 {[%clk 0:02:52.3]} 8. Nb5 {[%clk 0:03:02.6]} 8...
Nc6 {[%clk 0:02:52.2]} 9. Bb2 {[%clk 0:03:03.2]} 9... e5 {[%clk 0:02:51.9]} 10.
d3 {[%clk 0:02:57.5]} 10... Re8 {[%clk 0:02:44.9]} 11. Qd2 {[%clk 0:02:44.5]}
11... h6 {[%clk 0:02:39.8]} 12. e3 {[%clk 0:02:39.9]} 12... Bb4 {[%clk
0:02:39.5]} 13. Qe2 {[%clk 0:02:38.7]} 13... Bg4 {[%clk 0:02:35.2]} 14. h3
{[%clk 0:02:35.4]} 14... Bh5 {[%clk 0:02:35.4]} 15. a3 {[%clk 0:02:31.6]} 15...
Bc5 {[%clk 0:02:35.5]} 16. exd4 {[%clk 0:02:16.3]} 16... exd4 {[%clk 0:02:35.5]}
17. Qd2 {[%clk 0:02:16.4]} 17... Qd7 {[%clk 0:02:24.4]} 18. Qf4 {[%clk
0:02:15.5]} 18... Bg6 {[%clk 0:02:13.9]} 19. Rfd1 {[%clk 0:02:05]} 19... Rad8
{[%clk 0:02:00.7]} 20. Qxc7 {[%clk 0:02:01.4]} 20... Re2 {[%clk 0:01:58.2]} 21.
Qxd7 {[%clk 0:01:36.6]} 21... Rxd7 {[%clk 0:02:00.1]} 22. b4 {[%clk 0:01:36.5]}
22... axb4 {[%clk 0:01:59.6]} 23. axb4 {[%clk 0:01:36.8]} 23... Nxb4 {[%clk
0:02:00.8]} 24. Bxd4 {[%clk 0:01:37.1]} 24... Bxd4 {[%clk 0:01:44.5]} 25. Nfxd4
{[%clk 0:01:27.9]} 25... Rb2 {[%clk 0:01:42.9]} 26. Bf1 {[%clk 0:01:24.3]} 26...
h5 {[%clk 0:01:26]} 27. f4 {[%clk 0:01:22.8]} 27... Ne8 {[%clk 0:01:16]} 28. f5
{[%clk 0:01:16.8]} 28... Bh7 {[%clk 0:01:17]} 29. Re1 {[%clk 0:01:11.3]} 29...
Rd8 {[%clk 0:01:11.2]} 30. Re7 {[%clk 0:01:10.4]} 30... g6 {[%clk 0:01:07.1]}
31. Ra7 {[%clk 0:00:56.1]} 31... Nd6 {[%clk 0:00:57.9]} 32. Nxd6 {[%clk
0:00:39.7]} 32... Rxd6 {[%clk 0:00:59.8]} 33. Raxb7 {[%clk 0:00:40.8]} 33...
Rxd4 {[%clk 0:00:42]} 34. f6 {[%clk 0:00:41.8]} 34... Rd8 {[%clk 0:00:40.3]} 35.
Rxf7 {[%clk 0:00:42.2]} 35... Nxd3 {[%clk 0:00:40.9]} 36. Rg7+ {[%clk 0:00:39]}
36... Kf8 {[%clk 0:00:41.8]} 37. Bxd3 {[%clk 0:00:33.7]} 37... Rxb7 {[%clk
0:00:41.9]} 38. Rxb7 {[%clk 0:00:33.8]} 38... Rxd3 {[%clk 0:00:43]} 39. Rxh7
{[%clk 0:00:34]} 39... Rxg3+ {[%clk 0:00:44.4]} 40. Kh2 {[%clk 0:00:29.1]} 40...
Rf3 {[%clk 0:00:45.3]} 41. c5 {[%clk 0:00:10.1]} 41... Rxf6 {[%clk 0:00:43.8]}
42. Rc7 {[%clk 0:00:11.4]} 42... Rf2+ {[%clk 0:00:44.2]} 43. Kg3 {[%clk
0:00:12.5]} 43... Rc2 {[%clk 0:00:46.1]} 44. Kf4 {[%clk 0:00:13.8]} 44... Rd2
{[%clk 0:00:42.9]} 45. Kg5 {[%clk 0:00:14.5]} 45... Rg2+ {[%clk 0:00:43.2]} 46.
Kh6 {[%clk 0:00:15.5]} 46... Ke8 {[%clk 0:00:43.9]} 47. Rg7 {[%clk 0:00:15.7]}
47... Rg3 {[%clk 0:00:44.8]} 48. c6 {[%clk 0:00:15.4]} 48... Kd8 {[%clk
0:00:45.5]} 49. Rxg6 {[%clk 0:00:07.1]} 49... Rxh3 {[%clk 0:00:46.4]} 50. Rg7
{[%clk 0:00:08.1]} 50... Rc3 {[%clk 0:00:46.4]} 51. Rg6 {[%clk 0:00:08.8]} 51...
Kc7 {[%clk 0:00:47]} 52. Kxh5 {[%clk 0:00:10.7]} 52... Rc5+ {[%clk 0:00:48.1]}
53. Kh6 {[%clk 0:00:11.3]} 53... Rxc6 {[%clk 0:00:50]} 54. Rxc6+ {[%clk
0:00:12.6]} 54... Kxc6 {[%clk 0:00:51.9]} 1/2-1/2

[Event "*** Titled Tuesday Blitz"]
[Site "Chess.com"]
[Date "2019.06.04"]
[Round "4"]
[White "Astaneh"]
[Black "Rumpel-VK"]
[Result "0-1"]
[WhiteElo "2540"]
[BlackElo "2551"]
[TimeControl "180+2"]
[EndTime "13:52:29 PDT"]
[Termination "Rumpel-VK won by resignation"]

1. Nf3 {[%clk 0:02:59.3]} 1... d5 {[%clk 0:02:57.9]} 2. c4 {[%clk 0:02:55.5]}
2... d4 {[%clk 0:02:58.1]} 3. b4 {[%clk 0:02:56.3]} 3... g5 {[%clk 0:02:59.2]}
4. Bb2 {[%clk 0:02:54.6]} 4... Bg7 {[%clk 0:02:57.6]} 5. e3 {[%clk 0:02:53.3]}
5... e5 {[%clk 0:02:46.7]} 6. exd4 {[%clk 0:02:46.8]} 6... exd4 {[%clk
0:02:20.9]} 7. Bd3 {[%clk 0:02:37.4]} 7... g4 {[%clk 0:02:14.2]} 8. Qe2+ {[%clk
0:02:37.7]} 8... Be6 {[%clk 0:02:06.1]} 9. Ne5 {[%clk 0:02:38]} 9... Qd6 {[%clk
0:01:46.7]} 10. Nxg4 {[%clk 0:02:18.9]} 10... h5 {[%clk 0:01:43.9]} 11. Ne3
{[%clk 0:02:02.1]} 11... Qxb4 {[%clk 0:01:24.5]} 12. Ba3 {[%clk 0:02:00.2]}
12... Qa5 {[%clk 0:01:14.4]} 13. Nd5 {[%clk 0:02:00.2]} 13... c6 {[%clk
0:01:11.8]} 14. Nf4 {[%clk 0:01:59.2]} 14... Qe5 {[%clk 0:01:02.6]} 15. Qxe5
{[%clk 0:01:53.1]} 15... Bxe5 {[%clk 0:01:03.6]} 16. Nxe6 {[%clk 0:01:55]} 16...
fxe6 {[%clk 0:01:04.4]} 17. Bg6+ {[%clk 0:01:41.9]} 17... Kd8 {[%clk 0:01:04.5]}
18. d3 {[%clk 0:01:43.5]} 18... Ne7 {[%clk 0:01:04.1]} 19. Be4 {[%clk
0:01:43.9]} 19... Nd7 {[%clk 0:01:04.7]} 20. Nd2 {[%clk 0:01:43.8]} 20... Nf5
{[%clk 0:00:49.4]} 21. Rb1 {[%clk 0:01:44.2]} 21... Kc7 {[%clk 0:00:49.5]} 22.
Nf3 {[%clk 0:01:33.3]} 22... Bf6 {[%clk 0:00:48.5]} 23. h4 {[%clk 0:01:32.6]}
23... Rag8 {[%clk 0:00:45.3]} 24. g3 {[%clk 0:01:33.1]} 24... b6 {[%clk
0:00:45.1]} 25. Bc1 {[%clk 0:01:30.6]} 25... c5 {[%clk 0:00:42.7]} 26. Bf4+
{[%clk 0:01:30.1]} 26... Nd6 {[%clk 0:00:42.7]} 27. Nd2 {[%clk 0:01:05.7]} 27...
e5 {[%clk 0:00:32.2]} 28. Bg5 {[%clk 0:01:06.7]} 28... Bxg5 {[%clk 0:00:32.5]}
29. hxg5 {[%clk 0:01:08.6]} 29... Rxg5 {[%clk 0:00:33]} 30. Rh4 {[%clk 0:01:03]}
30... Nf6 {[%clk 0:00:33.2]} 31. Bf3 {[%clk 0:01:00.5]} 31... Nf5 {[%clk
0:00:22.4]} 32. Rh3 {[%clk 0:00:58.7]} 32... h4 {[%clk 0:00:21.7]} 33. Ne4
{[%clk 0:00:45.5]} 33... Nxe4 {[%clk 0:00:20.6]} 34. Bxe4 {[%clk 0:00:46.6]}
34... Nd6 {[%clk 0:00:18.4]} 35. Bg2 {[%clk 0:00:42.5]} 35... Rgg8 {[%clk
0:00:18.3]} 36. Bd5 {[%clk 0:00:38]} 36... hxg3 {[%clk 0:00:17.7]} 37. Rxg3
{[%clk 0:00:39.9]} 37... Rxg3 {[%clk 0:00:18]} 38. fxg3 {[%clk 0:00:41.8]} 38...
e4 {[%clk 0:00:18]} 39. Kf2 {[%clk 0:00:38.2]} 39... e3+ {[%clk 0:00:18.4]} 40.
Kf3 {[%clk 0:00:39.7]} 40... Rf8+ {[%clk 0:00:18.7]} 41. Kg4 {[%clk 0:00:41]}
41... Rf2 {[%clk 0:00:18.8]} 42. Rh1 {[%clk 0:00:37.8]} 42... b5 {[%clk
0:00:18]} 43. cxb5 {[%clk 0:00:35.7]} 43... Nxb5 {[%clk 0:00:17.8]} 44. Rh7+
{[%clk 0:00:27.9]} 44... Kd6 {[%clk 0:00:15.6]} 45. Bc4 {[%clk 0:00:28.6]} 45...
e2 {[%clk 0:00:13.7]} 46. Rh6+ {[%clk 0:00:29.8]} 46... Kc7 {[%clk 0:00:13.7]}
47. Re6 {[%clk 0:00:28.4]} 47... Nc3 {[%clk 0:00:14.5]} 0-1

[Event "*** Titled Tuesday Blitz"]
[Site "Chess.com"]
[Date "2019.06.04"]
[Round "4"]
[White "Veiso"]
[Black "Haykos"]
[Result "1/2-1/2"]
[WhiteElo "2413"]
[BlackElo "2574"]
[TimeControl "180+2"]
[EndTime "13:52:40 PDT"]
[Termination "Game drawn by agreement"]

1. d4 {[%clk 0:03:01.9]} 1... d5 {[%clk 0:03:01]} 2. c4 {[%clk 0:03:02.5]} 2...
dxc4 {[%clk 0:03:02.3]} 3. e4 {[%clk 0:03:01.4]} 3... c5 {[%clk 0:03:01.3]} 4.
d5 {[%clk 0:03:00.2]} 4... e6 {[%clk 0:03:02.8]} 5. Bxc4 {[%clk 0:02:57.9]} 5...
Nf6 {[%clk 0:03:02.1]} 6. Nc3 {[%clk 0:02:58.4]} 6... exd5 {[%clk 0:03:03.2]} 7.
exd5 {[%clk 0:02:59.2]} 7... Bd6 {[%clk 0:03:01.1]} 8. Nf3 {[%clk 0:02:56.6]}
8... a6 {[%clk 0:03:02.1]} 9. a4 {[%clk 0:02:57.1]} 9... O-O {[%clk 0:03:02.7]}
10. O-O {[%clk 0:02:54.5]} 10... Nbd7 {[%clk 0:03:00.3]} 11. h3 {[%clk
0:02:53.5]} 11... h6 {[%clk 0:03:00.5]} 12. a5 {[%clk 0:02:51.1]} 12... Qc7
{[%clk 0:02:40.4]} 13. Re1 {[%clk 0:02:40.5]} 13... Ne5 {[%clk 0:02:39.7]} 14.
Nxe5 {[%clk 0:02:33.5]} 14... Bxe5 {[%clk 0:02:41.6]} 15. Qf3 {[%clk 0:02:34.8]}
15... Bd7 {[%clk 0:02:37.5]} 16. Bd2 {[%clk 0:02:28.8]} 16... Rae8 {[%clk
0:02:34.5]} 17. Re2 {[%clk 0:02:12.6]} 17... Bh2+ {[%clk 0:02:20.2]} 18. Kh1
{[%clk 0:02:12.6]} 18... Rxe2 {[%clk 0:02:22.1]} 19. Qxe2 {[%clk 0:02:10.7]}
19... Re8 {[%clk 0:02:22.3]} 20. Qf3 {[%clk 0:02:11.5]} 20... Be5 {[%clk
0:02:22.1]} 21. Re1 {[%clk 0:02:09.3]} 21... Qxa5 {[%clk 0:01:40.4]} 22. Ne4
{[%clk 0:02:10.2]} 22... Qc7 {[%clk 0:01:41.1]} 23. d6 {[%clk 0:02:03.1]} 23...
Qd8 {[%clk 0:01:39.2]} 24. Nxc5 {[%clk 0:01:58.3]} 24... Bc6 {[%clk 0:01:40.2]}
25. Qb3 {[%clk 0:01:55.6]} 25... Qxd6 {[%clk 0:00:43.3]} 26. Bxf7+ {[%clk
0:01:52]} 26... Kf8 {[%clk 0:00:44.1]} 27. Bb4 {[%clk 0:01:37]} 27... Re7 {[%clk
0:00:45.3]} 28. Nd3 {[%clk 0:01:21.8]} 28... Bxg2+ {[%clk 0:00:20.6]} 29. Kxg2
{[%clk 0:01:19.9]} 29... Qc6+ {[%clk 0:00:21.3]} 30. Kg1 {[%clk 0:01:16.8]}
30... Bd6 {[%clk 0:00:21.9]} 31. Bxd6 {[%clk 0:01:15.5]} 31... Qxd6 {[%clk
0:00:19.7]} 32. Rxe7 {[%clk 0:01:14.2]} 32... Qxe7 {[%clk 0:00:21.6]} 33. Bg6
{[%clk 0:01:12]} 33... Nd7 {[%clk 0:00:17.7]} 34. Nf4 {[%clk 0:01:08.2]} 34...
Nc5 {[%clk 0:00:18.8]} 35. Qd5 {[%clk 0:01:04.6]} 35... Qg5+ {[%clk 0:00:14]}
36. Qxg5 {[%clk 0:01:04.5]} 36... hxg5 {[%clk 0:00:15.9]} 37. Nd5 {[%clk
0:01:05.1]} 37... Na4 {[%clk 0:00:15.9]} 38. b3 {[%clk 0:01:04.3]} 38... Nc5
{[%clk 0:00:16.7]} 39. Bc2 {[%clk 0:01:05]} 39... Ke8 {[%clk 0:00:16.5]} 40. Kg2
{[%clk 0:01:05.3]} 40... Kd7 {[%clk 0:00:17.8]} 41. Kg3 {[%clk 0:01:06.7]} 41...
Kd6 {[%clk 0:00:19.3]} 42. Ne3 {[%clk 0:01:08]} 42... b5 {[%clk 0:00:19.9]} 43.
Kg4 {[%clk 0:01:09]} 43... Ne6 {[%clk 0:00:19]} 44. Kf5 {[%clk 0:00:57.1]} 44...
a5 {[%clk 0:00:18.6]} 45. Kg6 {[%clk 0:00:55.9]} 45... Nf4+ {[%clk 0:00:19.9]}
46. Kxg5 {[%clk 0:00:53.5]} 46... Nxh3+ {[%clk 0:00:21.3]} 47. Kg6 {[%clk
0:00:54.9]} 47... Nxf2 {[%clk 0:00:22.1]} 48. Kxg7 {[%clk 0:00:56.3]} 48... Ke5
{[%clk 0:00:23.6]} 49. Kf7 {[%clk 0:00:55.7]} 49... Kd4 {[%clk 0:00:25]} 50. Nd1
{[%clk 0:00:51.5]} 50... Nxd1 {[%clk 0:00:10]} 51. Bxd1 {[%clk 0:00:52]} 51...
Kc3 {[%clk 0:00:10.9]} 52. Ke6 {[%clk 0:00:53.4]} 52... Kd2 {[%clk 0:00:11.9]}
53. Bf3 {[%clk 0:00:52.7]} 53... Kc3 {[%clk 0:00:13.4]} 54. Bd5 {[%clk
0:00:51.5]} 54... a4 {[%clk 0:00:14.7]} 55. bxa4 {[%clk 0:00:51.7]} 55... bxa4
{[%clk 0:00:16.6]} 56. Kd6 {[%clk 0:00:53.6]} 56... a3 {[%clk 0:00:17.8]}
1/2-1/2

[Event "*** Titled Tuesday Blitz"]
[Site "Chess.com"]
[Date "2019.06.04"]
[Round "4"]
[White "ChessWeebs"]
[Black "pultineviciuspaulius"]
[Result "1-0"]
[WhiteElo "2781"]
[BlackElo "2725"]
[TimeControl "180+2"]
[EndTime "13:52:42 PDT"]
[Termination "ChessWeebs won by resignation"]

1. Nf3 {[%clk 0:03:01.9]} 1... Nf6 {[%clk 0:03:00.1]} 2. g3 {[%clk 0:03:01.8]}
2... g6 {[%clk 0:02:58.7]} 3. Bg2 {[%clk 0:03:03]} 3... Bg7 {[%clk 0:02:59.5]}
4. c4 {[%clk 0:03:04.1]} 4... c6 {[%clk 0:02:58]} 5. O-O {[%clk 0:02:57.7]} 5...
O-O {[%clk 0:02:58.6]} 6. b3 {[%clk 0:02:57.2]} 6... Ne4 {[%clk 0:02:57.9]} 7.
d4 {[%clk 0:02:58.3]} 7... d5 {[%clk 0:02:58.8]} 8. Bb2 {[%clk 0:02:56.8]} 8...
a5 {[%clk 0:02:59.6]} 9. Nc3 {[%clk 0:02:55]} 9... Bf5 {[%clk 0:03:00.5]} 10.
Nh4 {[%clk 0:02:54.5]} 10... Nxc3 {[%clk 0:02:57.9]} 11. Bxc3 {[%clk 0:02:56.4]}
11... Be6 {[%clk 0:02:59.3]} 12. Qd3 {[%clk 0:02:48.7]} 12... Na6 {[%clk
0:02:43.6]} 13. a3 {[%clk 0:02:16.5]} 13... a4 {[%clk 0:02:39.9]} 14. cxd5
{[%clk 0:02:17.6]} 14... Bxd5 {[%clk 0:02:40.3]} 15. bxa4 {[%clk 0:02:17.1]}
15... Bxg2 {[%clk 0:02:36.3]} 16. Nxg2 {[%clk 0:02:18.7]} 16... Nc5 {[%clk
0:02:34.3]} 17. dxc5 {[%clk 0:02:05.3]} 17... Qxd3 {[%clk 0:02:36.2]} 18. exd3
{[%clk 0:02:07]} 18... Bxc3 {[%clk 0:02:38.1]} 19. Rab1 {[%clk 0:02:08.6]} 19...
Rfb8 {[%clk 0:02:27.7]} 20. Rfc1 {[%clk 0:02:07.9]} 20... Bf6 {[%clk 0:01:59.7]}
21. Rc4 {[%clk 0:02:06.6]} 21... Ra5 {[%clk 0:01:58.8]} 22. d4 {[%clk
0:01:57.1]} 22... Rd8 {[%clk 0:01:51.4]} 23. Rbb4 {[%clk 0:01:35.9]} 23... e5
{[%clk 0:01:51.4]} 24. Ne1 {[%clk 0:01:36.8]} 24... Rxd4 {[%clk 0:01:09.7]} 25.
Rxd4 {[%clk 0:01:37.7]} 25... exd4 {[%clk 0:01:11.6]} 26. Nd3 {[%clk 0:01:39.3]}
26... Ra7 {[%clk 0:01:07.6]} 27. Kf1 {[%clk 0:01:39.7]} 27... Kf8 {[%clk
0:01:08.6]} 28. Ke2 {[%clk 0:01:21.7]} 28... Ke7 {[%clk 0:01:08]} 29. Kd2 {[%clk
0:01:03.5]} 29... Ke6 {[%clk 0:01:05.4]} 30. Kc2 {[%clk 0:01:04.6]} 30... Kd5
{[%clk 0:01:00.2]} 31. Kb3 {[%clk 0:00:49.3]} 31... Ke4 {[%clk 0:00:44.4]} 32.
Kc4 {[%clk 0:00:50.2]} 32... Kf3 {[%clk 0:00:36.1]} 33. h4 {[%clk 0:00:51.1]}
33... h5 {[%clk 0:00:36.7]} 34. Kb3 {[%clk 0:00:51.6]} 34... Bg7 {[%clk
0:00:32.1]} 35. a5 {[%clk 0:00:45.3]} 35... Bf6 {[%clk 0:00:26.6]} 36. a6 {[%clk
0:00:44.9]} 36... bxa6 {[%clk 0:00:15.4]} 37. Rb6 {[%clk 0:00:46.2]} 37... Ke2
{[%clk 0:00:13.7]} 38. Kc2 {[%clk 0:00:39]} 38... Rc7 {[%clk 0:00:09.2]} 39.
Rxa6 {[%clk 0:00:40.1]} 39... Be7 {[%clk 0:00:10.5]} 40. a4 {[%clk 0:00:39]}
40... f5 {[%clk 0:00:08.9]} 41. a5 {[%clk 0:00:37.3]} 41... f4 {[%clk
0:00:10.3]} 42. Rb6 {[%clk 0:00:29.6]} 42... f3 {[%clk 0:00:06.9]} 43. a6 {[%clk
0:00:30.2]} 43... Ra7 {[%clk 0:00:07.8]} 44. Rb7 {[%clk 0:00:27.5]} 44... Rxa6
{[%clk 0:00:06.1]} 45. Rxe7+ {[%clk 0:00:28.5]} 45... Kf1 {[%clk 0:00:08]} 46.
Kb3 {[%clk 0:00:24.7]} 46... Ra1 {[%clk 0:00:08.5]} 47. Re6 {[%clk 0:00:25.8]}
47... Rd1 {[%clk 0:00:09.2]} 48. Kc4 {[%clk 0:00:27]} 48... Rd2 {[%clk
0:00:07.2]} 49. Rxc6 {[%clk 0:00:26.6]} 49... Rc2+ {[%clk 0:00:07.7]} 50. Kxd4
{[%clk 0:00:27.8]} 50... g5 {[%clk 0:00:04.1]} 51. hxg5 {[%clk 0:00:28.9]} 51...
Ra2 {[%clk 0:00:05.3]} 52. g6 {[%clk 0:00:29.9]} 52... Ra7 {[%clk 0:00:06.8]}
53. Rd6 {[%clk 0:00:30.6]} 53... Rg7 {[%clk 0:00:08.2]} 54. c6 {[%clk
0:00:32.1]} 54... h4 {[%clk 0:00:08.5]} 55. gxh4 {[%clk 0:00:33.2]} 1-0

[Event "*** Titled Tuesday Blitz"]
[Site "Chess.com"]
[Date "2019.06.04"]
[Round "4"]
[White "Tjktiger"]
[Black "Vamostodorecto"]
[Result "1-0"]
[WhiteElo "2711"]
[BlackElo "2433"]
[TimeControl "180+2"]
[EndTime "13:52:46 PDT"]
[Termination "Tjktiger won by resignation"]

1. c4 {[%clk 0:02:59.9]} 1... e5 {[%clk 0:02:58]} 2. Nc3 {[%clk 0:03:00.9]} 2...
Nc6 {[%clk 0:02:59.7]} 3. Nf3 {[%clk 0:03:01.3]} 3... g6 {[%clk 0:03:00.9]} 4.
d4 {[%clk 0:03:01.8]} 4... exd4 {[%clk 0:03:02.4]} 5. Nxd4 {[%clk 0:03:03.7]}
5... Bg7 {[%clk 0:03:03.1]} 6. Nxc6 {[%clk 0:03:05.3]} 6... bxc6 {[%clk
0:03:05]} 7. g3 {[%clk 0:03:04.2]} 7... Ne7 {[%clk 0:03:06.5]} 8. Bg2 {[%clk
0:03:05.3]} 8... O-O {[%clk 0:03:08]} 9. O-O {[%clk 0:03:06.7]} 9... d6 {[%clk
0:03:05.4]} 10. Qc2 {[%clk 0:03:06.5]} 10... Be6 {[%clk 0:03:05.1]} 11. b3
{[%clk 0:03:06.4]} 11... Qd7 {[%clk 0:02:56.5]} 12. Bb2 {[%clk 0:03:05.7]} 12...
Bf5 {[%clk 0:02:50.7]} 13. Ne4 {[%clk 0:03:03.4]} 13... a5 {[%clk 0:02:21.3]}
14. Rad1 {[%clk 0:02:55.8]} 14... a4 {[%clk 0:02:17.7]} 15. Bxg7 {[%clk
0:02:55.7]} 15... Kxg7 {[%clk 0:02:17.8]} 16. Qc3+ {[%clk 0:02:52.2]} 16... f6
{[%clk 0:02:17.9]} 17. Nc5 {[%clk 0:02:53.4]} 17... Qc8 {[%clk 0:02:15.9]} 18.
Nxa4 {[%clk 0:02:54.3]} 18... Bh3 {[%clk 0:02:11.1]} 19. e4 {[%clk 0:02:53.4]}
19... Bxg2 {[%clk 0:02:11.4]} 20. Kxg2 {[%clk 0:02:55.3]} 20... c5 {[%clk
0:02:12.8]} 21. Qe3 {[%clk 0:01:33.9]} 21... Nc6 {[%clk 0:02:10.6]} 22. Rd2
{[%clk 0:01:34.5]} 22... Nd4 {[%clk 0:02:09.8]} 23. Rxd4 {[%clk 0:01:34.8]}
23... cxd4 {[%clk 0:02:10.2]} 24. Qxd4 {[%clk 0:01:36.7]} 24... Re8 {[%clk
0:02:02.5]} 25. Nc3 {[%clk 0:01:37.3]} 25... Qb7 {[%clk 0:01:31.4]} 26. Nd5
{[%clk 0:01:24.9]} 26... Re6 {[%clk 0:01:25.8]} 27. a4 {[%clk 0:01:19.4]} 27...
Rae8 {[%clk 0:01:11.9]} 28. f3 {[%clk 0:01:12.2]} 28... Re5 {[%clk 0:01:01.9]}
29. b4 {[%clk 0:01:08]} 29... c6 {[%clk 0:01:01.7]} 30. Nxf6 {[%clk 0:00:56.2]}
30... R8e6 {[%clk 0:00:56.8]} 31. Ng4 {[%clk 0:00:50.1]} 31... Qxb4 {[%clk
0:00:49]} 32. f4 {[%clk 0:00:47.1]} 32... h5 {[%clk 0:00:48.9]} 33. Nf2 {[%clk
0:00:46.1]} 33... c5 {[%clk 0:00:44.2]} 34. Qa1 {[%clk 0:00:46.3]} 34... Qxc4
{[%clk 0:00:41.2]} 35. fxe5 {[%clk 0:00:47]} 35... dxe5 {[%clk 0:00:43.1]} 36.
Rc1 {[%clk 0:00:47]} 36... Qe2 {[%clk 0:00:41.8]} 37. Re1 {[%clk 0:00:30.1]}
37... Qc2 {[%clk 0:00:35.2]} 38. Qd1 {[%clk 0:00:30]} 38... Qa2 {[%clk
0:00:31.6]} 39. Qd5 {[%clk 0:00:25.8]} 39... Qxd5 {[%clk 0:00:31.7]} 40. exd5
{[%clk 0:00:27.7]} 40... Re8 {[%clk 0:00:30.1]} 41. Ne4 {[%clk 0:00:27.4]} 41...
c4 {[%clk 0:00:31.4]} 42. Rc1 {[%clk 0:00:22.9]} 42... Rd8 {[%clk 0:00:29.8]}
43. d6 {[%clk 0:00:22.5]} 43... Rc8 {[%clk 0:00:30.2]} 44. a5 {[%clk 0:00:16.2]}
44... Kf7 {[%clk 0:00:29.3]} 45. d7 {[%clk 0:00:17.4]} 45... Rd8 {[%clk
0:00:29.1]} 46. Rd1 {[%clk 0:00:18.1]} 46... Ke7 {[%clk 0:00:28.3]} 47. a6
{[%clk 0:00:19.5]} 47... c3 {[%clk 0:00:25.6]} 48. Nxc3 {[%clk 0:00:19.7]} 48...
Ra8 {[%clk 0:00:26.2]} 49. d8=Q+ {[%clk 0:00:20]} 49... Rxd8 {[%clk 0:00:26.6]}
50. Rxd8 {[%clk 0:00:21.9]} 50... Kxd8 {[%clk 0:00:28.5]} 51. a7 {[%clk
0:00:23.4]} 1-0